Workbook

Sheet MPAY5 CALC
A2: 2022 Over 2019 Growth Rate by Hospital (Jan-Dec paid thru Mar) | AO2: =7796/288000 -> 0.02706944444
A3: MPA Y5 Attribution | L3: National Medicare Growth 20 over 19: | M3: =-3.38% -> -0.0338 | R3: Excluding Quality Adjustment | U3: Academic Tier | X3: Adding Quality Adjustment Score of RRIP + MHAC
L4: National Medicare Growth 21 over 20: | M4: =0.0896 -> 0.0896 | S4: Maximum Perf. | T4: Maximum Revenue
B5: National Average | L5: National Medicare Growth 22 over 21: | M5: 0.0284 | S5: Threshold | T5: at Risk | AE5: Traditional MPA before Other Adj. | AH5: Prior ECIP | AJ5: With ECIP | AN5: EQIP Adjustment | AQ5: MDPCP Supplemental Adjustment | AY5: MPA Savings Component | BB5: CTI Adjustment
A6: pro2 | B6: MD Attribution | C6: =SUM(C10:C54) -> 756445.55 | D6: =SUM(D10:D54) -> 9077346.6 | E6: =SUM(E10:E54) -> 9500572164 | G6: =E6/C6 -> 12559.49244 | H6: =SUM(H10:H54) -> 725729.7 | I6: =SUM(I10:I54) -> 8708756.4 | J6: =SUM(J10:J54) -> 1.015633386e+10 | L6: =J6/H6 -> 13994.65098 | M6: =L6/G6-1 -> 0.1142688332 | S6: 0.03 | T6: 0.01 | AB6: =SUM(AB10:AB54) -> 4794237729 | AC6: Statewide total | AE6: Statewide total | AJ6: =SUM(AJ10:AJ54) -> -158819 | AK6: =SUM(AK10:AK54) -> 2241072 | AN6: =SUM(AN10:AN54) -> 9400000 | AQ6: =SUM(AQ10:AQ54) -> -32917073.27 | AR6: =SUM(AR10:AR54) -> -64311437.36 | AT6: =SUM(AT10:AT54) -> -6299059.698 | AU6: =SUM(AU10:AU54) -> -32684657.49 | AV6: =SUM(AV10:AV54) -> 3585435.758 | AY6: 0 | BB6: =SUM(BB10:BB54) -> 0.004466000013
C7: BASE YEAR (2019) | H7: PERFORMANCE YEAR (2022) | AC7: =SUM(AC10:AC54) -> -41604022.39 | AE7: =SUM(AE10:AE54) -> 5040877213
A8: HOSP ID | B8: HOSPITAL | C8: 2019 Part AB beneficiaries* | D8: 2019 Part AB Beneficiary Months | E8: 2019 COST (Risk Adjusted) | F8: 2019 Monthly TCOC per CAPITA (Risk Adjusted) | G8: 2019 TCOC per CAPITA (Risk Adjusted) | H8: 2022 Part AB beneficiaries* | I8: 2022 Part AB Beneficiary Months | J8: 2022 COST (Risk Adjusted) | K8: 2022 Monthly TCOC per CAPITA (Risk Adjusted) | L8: 2022 TCOC per CAPITA (Risk Adjusted) | M8: 2022 GROWTH RATE | P8: Hospital Specific Target Adjustment | Q8: Hopsital Specific Target | R8: 2022 Per Capita TCOC Benchmark (Risk Adjusted) | S8: 2022 Difference from Benchmark | T8: MPA Calculation BEFORE Academic Tier and Qual. Adj. | U8: Academic Performance (without cap) | V8: Academic Weight | W8: MPA Calculation BEFORE Qual. Adj. | X8: RY22 RRIP revenue adjustment | Y8: RY22 MHAC revenue adjustment | Z8: Quality Adjustment Score | AA8: MPA Calculation WITH Qual. Adj. | AB8: Hospital 2022 CY Total Medicare FFS Hospital Cost - MD Residents including Substance Abuse Claims** | AC8: MPA Performance $ | AE8: Hospital 2021 CY Total Medicare FFS Hospital Cost | AF8: Hospital Specific Factor after MPA | AH8: Initial Jan-Jun 2022 ECIP Aggregate TCOC Savings*** | AJ8: Final Jan-Jun 2022 ECIP Aggregate TCOC Savings*** | AK8: Initial Jul-Dec 2022 ECIP Aggregate TCOC Savings*** | AL8: Hospital Specific Factor After MPA and ECIP | AN8: $ Amount | AO8: Hospital Specific Factor After MPA, ECIP and EQIP | AQ8: Raw Result According to CRS Scorecard | AR8: Loss Cap According to CRS Scorecard | AS8: Overlap Elimination % | AT8: Adjusted Raw Results | AU8: Adjusted Cap | AV8: Final Adjustment | AW8: Hospital Specific Factor After MPA, ECIP, EQIP and MDPCP Supplemental Adjustment | AY8: MPA Savings Component Amount^^ | AZ8: Hospital Specific Factor After MPA, ECIP, EQIP, MPA-SC and MDPCP Supplemental Adjustment | BB8: CTI Amount Net of Offset | BC8: CTI Amount after quality Adjustment | BD8: Hospital Specific Factor After MPA, ECIP, EQIP, MPA-SC, CTI and MDPCP Supplemental Adjustment | BE8: <-- Final results for CMS
A9: A | B9: B | C9: C | D9: D | E9: E | F9: F=E/D | G9: I=E/C | H9: J | I9: K | J9: L | K9: M | L9: P=L/J | M9: Q=P/I-1 | P9: R | Q9: S = (1+Q3)*(1+Q4+R)*(1+Q5+R)-1 | R9: T=I*(1+S) | S9: U=(P-T)/T | T9: V | U9: ACADPerf | V9: ACAD% | W9: V ACAD | X9: W | Y9: X | Z9: Y=W+X | AA9: Z | AB9: AA | AC9: AB=Z*AA | AE9: AD | AF9: AE=(1+AC/AD) | AH9: AG | AJ9: AJ | AK9: AK | AL9: AH=(AE+((AJ+AK)/(AD/2)) | AN9: AI | AO9: AM=AH+AI/(AD/2) | AQ9: AN | AR9: AO | AS9: AP | AT9: AQ = AN x (1 - AP) | AU9: AR = AO x (1 - AP) | AV9: AS = Greater of AQ and AR | AW9: AT=AM + AS/AD | AY9: AU | AZ9: AV=AT + (AU*12/10)/AD | BB9: AW | BC9: AX = AW adjusted for Z | BD9: AY=AV + AX/AD
A10: 210001 | B10: Meritus Medical Center | C10: 24529.17 | D10: =C10*12 -> 294350.04 | E10: 281059668.9 | F10: =E10/D10 -> 954.8484142 | G10: =E10/C10 -> 11458.18097 | H10: 23849.42 | I10: =H10*12 -> 286193.04 | J10: 304048407.9 | K10: =J10/I10 -> 1062.389246 | L10: =J10/H10 -> 12748.67095 | M10: =L10/G10-1 -> 0.1126260777 | P10: -0.0025 | Q10: =(1+$M$3)*(1+$M$4+P10)*(1+$M$5+P10)-1 -> 0.07756024092 | R10: =G10*(1+Q10) -> 12346.88025 | S10: =(L10-R10)/R10 -> 0.03254188064 | T10: =MIN($T$6,MAX(-T$6,(R10-L10)/R10*($T$6/$S$6))) -> -0.01 | U10: 0 | V10: 0 | W10: =MIN($T$6,MAX(-T$6,U10*($T$6/$S$6)))*V10+T10*(1-V10) -> -0.01 | X10: -0.0062 | Y10: 0.001333333333 | Z10: =SUM(X10:Y10) -> -0.004866666667 | AA10: =MIN($T$6,MAX(-T$6,U10*($T$6/$S$6)*(IF(U10>0,1+Z10,1-Z10))))*(V10)+MIN($T$6,MAX(-T$6,(R10-L10)/R10*($T$6/$S$6)*(IF((R10-L10)/R10>0,1+Z10,1-Z10))))*(1-V10) -> -0.01 | AB10: 109348979.8 | AC10: =AA10*AB10 -> -1093489.798 | AE10: 109946099.5 | AF10: =IF(IFERROR(1+AC10/AE10,1)>1.01,1.01,IF(IFERROR(1+AC10/AE10,1)<0.99,0.99,IFERROR(1+AC10/AE10,1))) -> 0.9900543102 | AH10: 0 | AJ10: 0 | AK10: 0 | AL10: =AF10+((AK10+AJ10)/(AE10*6/12)) -> 0.9900543102 | AN10: 0 | AO10: =AL10+((AN10)/(AE10*6/12)) -> 0.9900543102 | AQ10: -484135.82 | AR10: -2289871.56 | AS10: 0.77824 | AT10: =AQ10*(1-AS10) -> -107361.9594 | AU10: =AR10*(1-AS10) -> -507801.9171 | AV10: =MAX(AT10,AU10) -> -107361.9594 | AW10: =AO10+AV10/AE10 -> 0.9890778139 | AY10: 0 | AZ10: =AW10+(AY10*12/10)/AE10 -> 0.9890778139 | BB10: 6704208.479 | BC10: =BB10*IF(BB10>0,1+Z10,1-Z10) -> 6671581.331 | BD10: =ROUND(AZ10+BC10/AE10,4) -> 1.0498
A11: 210002 | B11: University of Maryland | C11: 6157.92 | D11: =C11*12 -> 73895.04 | E11: 95330589.55 | F11: =E11/D11 -> 1290.081033 | G11: =E11/C11 -> 15480.9724 | H11: 4926.45 | I11: =H11*12 -> 59117.4 | J11: 83518327.99 | K11: =J11/I11 -> 1412.753741 | L11: =J11/H11 -> 16953.04489 | M11: =L11/G11-1 -> 0.09508914894 | P11: -0.0075 | Q11: =(1+$M$3)*(1+$M$4+P11)*(1+$M$5+P11)-1 -> 0.06737649292 | R11: =G11*(1+Q11) -> 16524.02603 | S11: 0.02596333741 | T11: -0.008654445802 | U11: -0.0344 | V11: 0.7875 | W11: =MIN($T$6,MAX(-T$6,U11*($T$6/$S$6)))*V11+T11*(1-V11) -> -0.009714069733 | X11: 0.01469999996 | Y11: -0.003666666667 | Z11: 0.01103333329 | AA11: =MIN($T$6,MAX(-T$6,U11*($T$6/$S$6)*(IF(U11>0,1+Z11,1-Z11))))*(V11)+MIN($T$6,MAX(-T$6,(R11-L11)/R11*($T$6/$S$6)*(IF((R11-L11)/R11>0,1+Z11,1-Z11))))*(1-V11) -> -0.009693778664 | AB11: 451725036.6 | AC11: =AA11*AB11 -> -4378922.521 | AE11: 483327678.9 | AF11: =IF(IFERROR(1+AC11/AE11,1)>1.01,1.01,IF(IFERROR(1+AC11/AE11,1)<0.99,0.99,IFERROR(1+AC11/AE11,1))) -> 0.9909400543 | AH11: 52501 | AJ11: =53791-AH11 -> 1290 | AK11: 88565 | AL11: =AF11+((AK11+AJ11)/(AE11*6/12)) -> 0.9913118725 | AN11: 9400000 | AO11: 1.030208879 | AQ11: -350092.34 | AR11: -295225.49 | AS11: 0.64435 | AT11: =AQ11*(1-AS11) -> -124510.3407 | AU11: =AR11*(1-AS11) -> -104996.9455 | AV11: =MAX(AT11,AU11) -> -104996.9455 | AW11: 1.029991642 | AY11: 0 | AZ11: 1.029991642 | BB11: -8209753.568 | BC11: -8119172.621 | BD11: 1.0132
A12: 210003 | B12: Prince George's Hospital Center | C12: 10533.44 | D12: 126401.28 | E12: 142182130.2 | F12: 1124.847234 | G12: 13498.1668 | H12: 9407.43 | I12: 112889.16 | J12: 139195584.8 | K12: 1233.028794 | L12: 14796.34552 | M12: 0.09617444624 | P12: -0.005 | Q12: 0.07246232817 | R12: 14476.2754 | S12: 0.02210997762 | T12: -0.007369992538 | U12: 0 | V12: 0 | W12: -0.007369992538 | X12: 0.01240000135 | Y12: -0.001 | Z12: 0.01140000135 | AA12: -0.007285974613 | AB12: 81209314.36 | AC12: -591689.0028 | AE12: 89299416.38 | AF12: 0.9933741 | AH12: 48143 | AJ12: =40362-AH12 -> -7781 | AK12: 66866 | AL12: 0.9946974009 | AN12: 0 | AO12: 0.9946974009 | AQ12: 1762394.22 | AR12: -487671.34 | AS12: 0.75544 | AT12: 431011.1304 | AU12: -119264.9029 | AV12: 431011.1304 | AW12: 0.9995239849 | AY12: 0 | AZ12: 0.9995239849 | BB12: -302364.186 | BC12: -298917.2339 | BD12: 0.9962
A13: 210004 | B13: Holy Cross Hospital | C13: 26905.75 | D13: 322869 | E13: 307735969.2 | F13: 953.129502 | G13: 11437.55402 | H13: 25869.49 | I13: 310433.88 | J13: 319334912.6 | K13: 1028.672877 | L13: 12344.07453 | M13: 0.079258249 | P13: -0.0025 | Q13: 0.07756024092 | R13: 12324.65347 | S13: 0.001575789469 | T13: -0.0005252631562 | U13: 0 | V13: 0 | W13: -0.0005252631562 | X13: 0.004699998867 | Y13: 0 | Z13: 0.004699998867 | AA13: -0.00052279442 | AB13: 72844385.54 | AC13: -38082.63829 | AE13: 80983841.33 | AF13: 0.9995297502 | AH13: 0 | AJ13: 0 | AK13: 0 | AL13: 0.9995297502 | AN13: 0 | AO13: 0.9995297502 | AQ13: 316457.85 | AR13: -137037.47 | AS13: 0.00288 | AT13: 315546.4514 | AU13: -136642.8021 | AV13: 315546.4514 | AW13: 1.003426163 | AY13: 0 | AZ13: 1.003426163 | BB13: 121482.9193 | BC13: 122053.8889 | BD13: 1.0049
A14: 210005 | B14: Frederick Health Hospital | C14: 33067.83 | D14: 396813.96 | E14: 401687722.5 | F14: 1012.282236 | G14: 12147.38683 | H14: 34180.42 | I14: 410165.04 | J14: 466034493.5 | K14: 1136.212129 | L14: 13634.54555 | M14: 0.122426226 | P14: -0.0025 | Q14: 0.07756024092 | R14: 13089.54108 | S14: 0.04163663744 | T14: -0.01 | U14: 0 | V14: 0 | W14: -0.01 | X14: -0.0001 | Y14: -0.008 | Z14: -0.0081 | AA14: -0.01 | AB14: 121139200.1 | AC14: -1211392.001 | AE14: 122338053.4 | AF14: 0.9900979951 | AH14: 0 | AJ14: 0 | AK14: 0 | AL14: 0.9900979951 | AN14: 0 | AO14: 0.9900979951 | AQ14: -471765.35 | AR14: -2125168.32 | AS14: 0.74786 | AT14: -118950.9153 | AU14: -535839.9402 | AV14: -118950.9153 | AW14: 0.9891256818 | AY14: 0 | AZ14: 0.9891256818 | BB14: 6002744.207 | BC14: 5954121.979 | BD14: 1.0378
A15: 210006 | B15: Harford Memorial | C15: 7347.7 | D15: 88172.4 | E15: 95237473.19 | F15: 1080.127945 | G15: 12961.53534 | H15: 6891.11 | I15: 82693.32 | J15: 101976847.3 | K15: 1233.193289 | L15: 14798.31947 | M15: 0.1417103831 | P15: -0.0075 | Q15: 0.06737649292 | R15: 13834.83813 | S15: 0.06964167812 | T15: -0.01 | U15: 0 | V15: 0 | W15: -0.01 | X15: -0.0143 | Y15: 0 | Z15: -0.0143 | AA15: -0.01 | AB15: 34787938.81 | AC15: -347879.3881 | AE15: 36371516.39 | AF15: 0.9904353895 | AH15: 0 | AJ15: 0 | AK15: 0 | AL15: 0.9904353895 | AN15: 0 | AO15: 0.9904353895 | AQ15: 308307.19 | AR15: -330012.14 | AS15: 0.8318 | AT15: 51857.26936 | AU15: -55508.04195 | AV15: 51857.26936 | AW15: 0.9918611554 | AY15: 0 | AZ15: 0.9918611554 | BB15: 1544022.734 | BC15: 1521943.209 | BD15: 1.0337
A16: 210008 | B16: Mercy Medical Center | C16: 10335.38 | D16: 124024.56 | E16: 158123962.9 | F16: 1274.940729 | G16: 15299.28875 | H16: 8531.12 | I16: 102373.44 | J16: 147206838.2 | K16: 1437.939745 | L16: 17255.27694 | M16: 0.1278483088 | P16: -0.0075 | Q16: 0.06737649292 | R16: 16330.10117 | S16: 0.05665462587 | T16: -0.01 | U16: 0 | V16: 0 | W16: -0.01 | X16: 0.00179999871 | Y16: -0.007666666667 | Z16: -0.005866667957 | AA16: -0.01 | AB16: 124207537.2 | AC16: -1242075.372 | AE16: 124696666.3 | AF16: 0.9900392255 | AH16: 0 | AJ16: 0 | AK16: 0 | AL16: 0.9900392255 | AN16: 0 | AO16: 0.9900392255 | AQ16: -5143721.22 | AR16: -3496528.31 | AS16: 0 | AT16: -5143721.22 | AU16: -3496528.31 | AV16: -3496528.31 | AW16: 0.9619989546 | AY16: 0 | AZ16: 0.9619989546 | BB16: -2237369.853 | BC16: -2250495.759 | BD16: 0.944
A17: 210009 | B17: Johns Hopkins Hospital | C17: 6679.96 | D17: 80159.52 | E17: 102417795.4 | F17: 1277.674758 | G17: 15332.0971 | H17: 5590.59 | I17: 67087.08 | J17: 99464795.47 | K17: 1482.62222 | L17: 17791.46664 | M17: 0.160406598 | P17: -0.005 | Q17: 0.07246232817 | R17: 16443.09655 | S17: 0.08200219958 | T17: -0.01 | U17: -0.0537 | V17: 0.7273 | W17: -0.01 | X17: 0.008200000206 | Y17: -0.01166666667 | Z17: -0.00346666646 | AA17: -0.01 | AB17: 495535370.7 | AC17: -4955353.707 | AE17: 509701347.1 | AF17: 0.990277927 | AH17: 0 | AJ17: 0 | AK17: 0 | AL17: 0.990277927 | AN17: 0 | AO17: 0.990277927 | AQ17: -456734.74 | AR17: -4171190.4 | AS17: 0.76518 | AT17: -107250.4516 | AU17: -979478.9297 | AV17: -107250.4516 | AW17: 0.9900675088 | AY17: 0 | AZ17: 0.9900675088 | BB17: -12008804.87 | BC17: -12050435.39 | BD17: 0.9664
A18: 210011 | B18: Saint Agnes Hospital | C18: 19733.42 | D18: 236801.04 | E18: 262668688.9 | F18: 1109.237903 | G18: 13310.85483 | H18: 17664.51 | I18: 211974.12 | J18: 265530019.4 | K18: 1252.65301 | L18: 15031.83612 | M18: 0.1292915673 | P18: -0.005 | Q18: 0.07246232817 | R18: 14275.39036 | S18: 0.05298949687 | T18: -0.01 | U18: 0 | V18: 0 | W18: -0.01 | X18: -0.00360000213 | Y18: 0 | Z18: -0.00360000213 | AA18: -0.01 | AB18: 121894398.5 | AC18: -1218943.985 | AE18: 125846072.9 | AF18: 0.9903140086 | AH18: 0 | AJ18: 0 | AK18: 0 | AL18: 0.9903140086 | AN18: 0 | AO18: 0.9903140086 | AQ18: -8528028.88 | AR18: -2594448.31 | AS18: 0.76295 | AT18: -2021569.246 | AU18: -615013.9719 | AV18: -615013.9719 | AW18: 0.9854269751 | AY18: 0 | AZ18: 0.9854269751 | BB18: -3095226.457 | BC18: -3106369.279 | BD18: 0.9607
A19: 210012 | B19: Sinai Hospital | C19: 26796.98 | D19: 321563.76 | E19: 388418219.9 | F19: 1207.904211 | G19: 14494.85054 | H19: 23151.23 | I19: 277814.76 | J19: 374162336.8 | K19: 1346.805104 | L19: 16161.66125 | M19: 0.1149933013 | P19: -0.01 | Q19: 0.06230273517 | R19: 15397.91937 | S19: 0.04960032989 | T19: -0.01 | U19: 0 | V19: 0 | W19: -0.01 | X19: 0.00239999937 | Y19: -0.003333333333 | Z19: -0.0009333339635 | AA19: -0.01 | AB19: 257492841.9 | AC19: -2574928.419 | AE19: 263762085.5 | AF19: 0.9902376856 | AH19: 0 | AJ19: 0 | AK19: 0 | AL19: 0.9902376856 | AN19: 0 | AO19: 0.9902376856 | AQ19: -5688836.94 | AR19: -4715525.85 | AS19: 0.75151 | AT19: -1413619.091 | AU19: -1171761.018 | AV19: -1171761.018 | AW19: 0.9857951933 | AY19: 0 | AZ19: 0.9857951933 | BB19: -1569281.961 | BC19: -1570746.625 | BD19: 0.9798
A20: 210013 | B20: Grace Medical Center | AC20: 0 | AE20: 871589.99 | AF20: 1 | AH20: 0 | AJ20: 0 | AK20: 0 | AL20: 1 | AN20: 0 | AO20: 1 | AQ20: -931978.4 | AR20: -55353.51 | AS20: 0 | AT20: =AQ20*(1-AS20) -> -931978.4 | AU20: =AR20*(1-AS20) -> -55353.51 | AV20: =MAX(AT20,AU20) -> -55353.51 | AW20: 0.9364913427 | AY20: 0 | AZ20: 0.9364913427 | BB20: 0 | BC20: 0 | BD20: 0.9365
A21: 210015 | B21: MedStar Franklin Square | C21: 18892.34 | D21: 226708.08 | E21: 273839750.3 | F21: 1207.895856 | G21: 14494.75027 | H21: 17095.5 | I21: 205146 | J21: 283779802 | K21: 1383.306533 | L21: 16599.6784 | M21: 0.1452200342 | P21: -0.01 | Q21: 0.06230273517 | R21: 15397.81285 | S21: 0.0780543025 | T21: -0.01 | U21: 0 | V21: 0 | W21: -0.01 | X21: 0.01379999995 | Y21: 0 | Z21: 0.01379999995 | AA21: -0.01 | AB21: 164456664.6 | AC21: -1644566.646 | AE21: 170429288.5 | AF21: 0.9903504459 | AH21: 0 | AJ21: 0 | AK21: 82367 | AL21: 0.9913170286 | AN21: 0 | AO21: 0.9913170286 | AQ21: 6015454.06 | AR21: -2070867.29 | AS21: 0 | AT21: 6015454.06 | AU21: -2070867.29 | AV21: 6015454.06 | AW21: 1.026612922 | AY21: 0 | AZ21: 1.026612922 | BB21: -2346556.495 | BC21: -2314174.015 | BD21: 1.013
A22: 210016 | B22: Washington Adventist (White Oak) | C22: 21148.92 | D22: 253787.04 | E22: 256483962.4 | F22: 1010.626714 | G22: 12127.52057 | H22: 19480.19 | I22: 233762.28 | J22: 252224716 | K22: 1078.979534 | L22: 12947.75441 | M22: 0.0676340919 | P22: -0.0025 | Q22: 0.07756024092 | R22: 13068.13399 | S22: -0.00921168826 | T22: 0.003070562753 | U22: 0 | V22: 0 | W22: 0.003070562753 | X22: -0.0024 | Y22: 0.01066666667 | Z22: 0.008266666667 | AA22: 0.003095946072 | AB22: 106183677.9 | AC22: 328738.9406 | AE22: 112704725.4 | AF22: 1.002916816 | AH22: 0 | AJ22: 0 | AK22: 0 | AL22: 1.002916816 | AN22: 0 | AO22: 1.002916816 | AQ22: -973818.24 | AR22: -405606.05 | AS22: 0 | AT22: -973818.24 | AU22: -405606.05 | AV22: -405606.05 | AW22: 0.9993179779 | AY22: 0 | AZ22: 0.9993179779 | BB22: -218283.1384 | BC22: -216478.6645 | BD22: 0.9974
A23: 210017 | B23: Garrett County | C23: 4729.33 | D23: 56751.96 | E23: 48289093.38 | F23: 850.8797472 | G23: 10210.55697 | H23: 4609.92 | I23: 55319.04 | J23: 52481375.92 | K23: 948.7036637 | L23: 11384.44396 | M23: 0.1149679691 | P23: 0 | Q23: 0.08267023117 | R23: 11054.66607 | S23: 0.02983155624 | T23: -0.009943852081 | U23: 0 | V23: 0 | W23: -0.009943852081 | X23: 0.02 | Y23: 0.01733333333 | Z23: 0.03733333333 | AA23: -0.009572614937 | AB23: 16547443.58 | AC23: -158402.3056 | AE23: 16596609.55 | AF23: 0.9904557431 | AH23: 27083 | AJ23: =27938-AH23 -> 855 | AK23: 11064 | AL23: 0.9918920605 | AN23: 0 | AO23: 0.9918920605 | AQ23: 0 | AR23: 0 | AS23: 0 | AT23: 0 | AU23: 0 | AV23: 0 | AW23: 0.9918920605 | AY23: 0 | AZ23: 0.9918920605 | BB23: 93761.10075 | BC23: 97261.51517 | BD23: 0.9978
A24: 210018 | B24: MedStar Montgomery General | C24: 14641.4 | D24: 175696.8 | E24: 169609917.9 | F24: 965.3557601 | G24: 11584.26912 | H24: 14712.56 | I24: 176550.72 | J24: 184540445.5 | K24: 1045.254562 | L24: 12543.05474 | M24: 0.08276617274 | P24: 0 | Q24: 0.08267023117 | R24: 12541.94333 | S24: 8.861569509e-05 | T24: -2.953856503e-05 | U24: 0 | V24: 0 | W24: -2.953856503e-05 | X24: 0.005400004289 | Y24: 0.01666666667 | Z24: 0.02206667096 | AA24: -2.888674723e-05 | AB24: 62459211.16 | AC24: -1804.243445 | AE24: 64478760 | AF24: 0.999972018 | AH24: 0 | AJ24: 0 | AK24: 139024 | AL24: 1.00428426 | AN24: 0 | AO24: 1.00428426 | AQ24: -478581.76 | AR24: -2566727.2 | AS24: 0 | AT24: -478581.76 | AU24: -2566727.2 | AV24: -478581.76 | AW24: 0.9968619433 | AY24: 0 | AZ24: 0.9968619433 | BB24: -795947.4874 | BC24: -778383.5761 | BD24: 0.9848
A25: 210019 | B25: Peninsula Regional | C25: 27932.45 | D25: 335189.4 | E25: 337743048.9 | F25: 1007.618525 | G25: 12091.4223 | H25: 27182.93 | I25: 326195.16 | J25: 376832751.3 | K25: 1155.237102 | L25: 13862.84522 | M25: 0.1465024442 | P25: -0.0075 | Q25: 0.06737649292 | R25: 12906.09993 | S25: 0.07413124776 | T25: -0.01 | U25: 0 | V25: 0 | W25: -0.01 | X25: 0.0012 | Y25: 0.007333333333 | Z25: 0.008533333333 | AA25: -0.01 | AB25: 162018211.8 | AC25: -1620182.118 | AE25: 163592964.4 | AF25: 0.9900962604 | AH25: 652316 | AJ25: =644649-AH25 -> -7667 | AK25: 519505 | AL25: 0.9963537178 | AN25: 0 | AO25: 0.9963537178 | AQ25: 207284.57 | AR25: -2602038.21 | AS25: 0.13121 | AT25: 180086.7616 | AU25: -2260624.776 | AV25: 180086.7616 | AW25: 0.9974545399 | AY25: 0 | AZ25: 0.9974545399 | BB25: 1325145.587 | BC25: 1336453.496 | BD25: 1.0056
A26: 210022 | B26: Suburban Hospital | C26: 34433.45 | D26: 413201.4 | E26: 363426264.9 | F26: 879.5378353 | G26: 10554.45402 | H26: 34717.85 | I26: 416614.2 | J26: 413552643.2 | K26: 992.6513383 | L26: 11911.81606 | M26: 0.1286056136 | P26: 0 | Q26: 0.08267023117 | R26: 11426.99318 | S26: 0.04242786132 | T26: -0.01 | U26: 0 | V26: 0 | W26: -0.01 | X26: 0.008199998193 | Y26: -0.005666666667 | Z26: 0.002533331526 | AA26: -0.01 | AB26: 110093477.4 | AC26: -1100934.774 | AE26: 118960681.5 | AF26: 0.9907453895 | AH26: 0 | AJ26: 0 | AK26: 0 | AL26: 0.9907453895 | AN26: 0 | AO26: 0.9907453895 | AQ26: -42166.27 | AR26: -1207538.98 | AS26: 0.77446 | AT26: -9510.180536 | AU26: -272348.3415 | AV26: -9510.180536 | AW26: 0.9906654456 | AY26: 0 | AZ26: 0.9906654456 | BB26: 1627587.279 | BC26: 1631710.497 | BD26: 1.0044
A27: 210023 | B27: Anne Arundel Medical Center | C27: 42784.25 | D27: 513411 | E27: 494216672.9 | F27: 962.6141102 | G27: 11551.36932 | H27: 43581.83 | I27: 522981.96 | J27: 568260356.7 | K27: 1086.577359 | L27: 13038.9283 | M27: 0.128777718 | P27: 0 | Q27: 0.08267023117 | R27: 12506.32369 | S27: 0.04258682424 | T27: -0.01 | U27: 0 | V27: 0 | W27: -0.01 | X27: -0.004000000756 | Y27: 0.009333333333 | Z27: 0.005333332577 | AA27: -0.01 | AB27: 204980698.1 | AC27: -2049806.981 | AE27: 210725023.3 | AF27: 0.9902725982 | AH27: 686311 | AJ27: =681390-AH27 -> -4921 | AK27: 0 | AL27: 0.9902258927 | AN27: 0 | AO27: 0.9902258927 | AQ27: -286462.74 | AR27: -2528972.82 | AS27: 0.36128 | AT27: -182969.4813 | AU27: -1615305.52 | AV27: -182969.4813 | AW27: 0.9893576072 | AY27: 0 | AZ27: 0.9893576072 | BB27: 13138706.61 | BC27: 13208779.7 | BD27: 1.052
A28: 210024 | B28: MedStar Union Memorial | C28: 12045.1 | D28: 144541.2 | E28: 179691977.7 | F28: 1243.188639 | G28: 14918.26367 | H28: 10186.63 | I28: 122239.56 | J28: 171780796.8 | K28: 1405.279901 | L28: 16863.35882 | M28: 0.1303834813 | P28: -0.0075 | Q28: 0.06737649292 | R28: 15923.40395 | S28: 0.05902976953 | T28: -0.01 | U28: 0 | V28: 0 | W28: -0.01 | X28: -0.001199998481 | Y28: -0.0006666666667 | Z28: -0.001866665148 | AA28: -0.01 | AB28: 147488140.8 | AC28: -1474881.408 | AE28: 152799097.2 | AF28: 0.9903475777 | AH28: 0 | AJ28: 0 | AK28: 29163 | AL28: 0.9907292946 | AN28: 0 | AO28: 0.9907292946 | AQ28: 1604072.44 | AR28: -398995.27 | AS28: 0 | AT28: 1604072.44 | AU28: -398995.27 | AV28: 1604072.44 | AW28: 1.001227213 | AY28: 0 | AZ28: 1.001227213 | BB28: -2204847.267 | BC28: -2208962.978 | BD28: 0.9868
A29: 210027 | B29: UPMC - Western Maryland | C29: 15889.67 | D29: 190676.04 | E29: 197555005.7 | F29: 1036.076718 | G29: 12432.92062 | H29: 15368.33 | I29: 184419.96 | J29: 216368701.5 | K29: 1173.239065 | L29: 14078.86878 | M29: 0.1323862844 | P29: -0.0075 | Q29: 0.06737649292 | R29: 13270.6072 | S29: 0.06090614881 | T29: -0.01 | U29: 0 | V29: 0 | W29: -0.01 | X29: 0.002600000378 | Y29: 0.01066666667 | Z29: 0.01326666704 | AA29: -0.01 | AB29: 112205681.3 | AC29: -1122056.813 | AE29: 111171912.9 | AF29: 0.99 | AH29: 0 | AJ29: 0 | AK29: 0 | AL29: 0.99 | AN29: 0 | AO29: 0.99 | AQ29: 2107331.14 | AR29: -1283602.06 | AS29: 0 | AT29: 2107331.14 | AU29: -1283602.06 | AV29: 2107331.14 | AW29: 1.008955607 | AY29: 0 | AZ29: 1.008955607 | BB29: -1450983.99 | BC29: -1431734.269 | BD29: 0.9961
A30: 210028 | B30: MedStar Saint Mary’s Hospital | C30: 14588.83 | D30: 175065.96 | E30: 174370849.9 | F30: 996.0294391 | G30: 11952.35327 | H30: 15303.5 | I30: 183642 | J30: 211117425.2 | K30: 1149.61406 | L30: 13795.36872 | M30: 0.1541968692 | P30: 0 | Q30: 0.08267023117 | R30: 12940.45708 | S30: 0.06606502695 | T30: -0.01 | U30: 0 | V30: 0 | W30: -0.01 | X30: -0.004700004135 | Y30: 0.01733333333 | Z30: 0.0126333292 | AA30: -0.01 | AB30: 65314724.86 | AC30: -653147.2486 | AE30: 66232809.08 | AF30: 0.9901386147 | AH30: 0 | AJ30: 0 | AK30: 0 | AL30: 0.9901386147 | AN30: 0 | AO30: 0.9901386147 | AQ30: -1910100 | AR30: -3366991.47 | AS30: 0 | AT30: -1910100 | AU30: -3366991.47 | AV30: -1910100 | AW30: 0.9612994333 | AY30: 0 | AZ30: 0.9612994333 | BB30: -887310.5473 | BC30: -876100.8611 | BD30: 0.9481
A31: 210029 | B31: Johns Hopkins Bayview Acute Care | C31: 9511.56 | D31: 114138.72 | E31: 142702147 | F31: 1250.25186 | G31: 15003.02232 | H31: 8128.11 | I31: 97537.32 | J31: 142683161.5 | K31: 1462.857105 | L31: 17554.28526 | M31: 0.1700499326 | P31: -0.0075 | Q31: 0.06737649292 | R31: 16013.87335 | S31: 0.09619233734 | T31: -0.01 | U31: 0 | V31: 0 | W31: -0.01 | X31: 0.01130000034 | Y31: -0.003333333333 | Z31: 0.007966667008 | AA31: -0.01 | AB31: 186413274.4 | AC31: -1864132.744 | AE31: 191785647.5 | AF31: 0.9902801238 | AH31: 0 | AJ31: 0 | AK31: 0 | AL31: 0.9902801238 | AN31: 0 | AO31: 0.9902801238 | AQ31: -1545716.26 | AR31: -2287353.72 | AS31: 0.73245 | AT31: -413556.3854 | AU31: -611981.4878 | AV31: -413556.3854 | AW31: 0.9881237769 | AY31: 0 | AZ31: 0.9881237769 | BB31: -4716429.44 | BC31: -4678855.217 | BD31: 0.9637
A32: 210030 | B32: UM Shore Medical Center at Chestertown | C32: 6705.83 | D32: 80469.96 | E32: 82944534.94 | F32: 1030.751537 | G32: 12369.01844 | H32: 6714.75 | I32: 80577 | J32: 96282264.46 | K32: 1194.910017 | L32: 14338.92021 | M32: 0.1592609611 | P32: -0.0025 | Q32: 0.07756024092 | R32: 13328.36249 | S32: 0.07582009531 | T32: -0.01 | U32: 0 | V32: 0 | W32: -0.01 | X32: 0.01999998918 | Y32: 0 | Z32: 0.01999998918 | AA32: -0.01 | AB32: 20658214.56 | AC32: -206582.1456 | AE32: 20551784.05 | AF32: 0.99 | AH32: 0 | AJ32: 0 | AK32: 0 | AL32: 0.99 | AN32: 0 | AO32: 0.99 | AQ32: -43794.74 | AR32: -320620.03 | AS32: 0.67495 | AT32: -14235.48024 | AU32: -104217.5408 | AV32: -14235.48024 | AW32: 0.989307336 | AY32: 0 | AZ32: 0.989307336 | BB32: 911116.4931 | BC32: 929338.8131 | BD32: 1.0345
A33: 210032 | B33: Union of Cecil | C33: 14092.53 | D33: 169110.36 | E33: 184092276.9 | F33: 1088.592543 | G33: 13063.11052 | H33: 13535.59 | I33: 162427.08 | J33: 190683038.8 | K33: 1173.960887 | L33: 14087.53064 | M33: 0.07842084136 | P33: -0.005 | Q33: 0.07246232817 | R33: 14009.69392 | S33: 0.005555918411 | T33: -0.001851972804 | U33: 0 | V33: 0 | W33: -0.001851972804 | X33: -0.0150999975 | Y33: -0.008333333333 | Z33: -0.02343333084 | AA33: -0.001895370695 | AB33: 46306827.88 | AC33: -87768.60455 | AE33: 46987436.05 | AF33: 0.9981320836 | AH33: 0 | AJ33: 0 | AK33: 0 | AL33: 0.9981320836 | AN33: 0 | AO33: 0.9981320836 | AQ33: 0 | AR33: 0 | AS33: 0 | AT33: 0 | AU33: 0 | AV33: 0 | AW33: 0.9981320836 | AY33: 0 | AZ33: 0.9981320836 | BB33: -1456870.803 | BC33: -1491010.139 | BD33: 0.9664
A34: 210033 | B34: Carroll County General | C34: 27586.17 | D34: 331034.04 | E34: 348618959.5 | F34: 1053.121182 | G34: 12637.45418 | H34: 26612.58 | I34: 319350.96 | J34: 373591804.5 | K34: 1169.847131 | L34: 14038.16558 | M34: 0.1108380987 | P34: -0.005 | Q34: 0.07246232817 | R34: 13553.19354 | S34: 0.03578286107 | T34: -0.01 | U34: 0 | V34: 0 | W34: -0.01 | X34: 0.002799999669 | Y34: 0.012 | Z34: 0.01479999967 | AA34: -0.01 | AB34: 85249832.53 | AC34: -852498.3253 | AE34: 88273563.72 | AF34: 0.990342541 | AH34: 0 | AJ34: 0 | AK34: 0 | AL34: 0.990342541 | AN34: 0 | AO34: 0.990342541 | AQ34: 2420576.36 | AR34: -1319842.59 | AS34: 0.80951 | AT34: 461095.5908 | AU34: -251416.815 | AV34: 461095.5908 | AW34: 0.9955660255 | AY34: 0 | AZ34: 0.9955660255 | BB34: -489590.9377 | BC34: -482344.992 | BD34: 0.9901
A35: 210034 | B35: MedStar Harbor Hospital | C35: 4297.66 | D35: 51571.92 | E35: 64458319.55 | F35: 1249.872402 | G35: 14998.46883 | H35: 3649.02 | I35: 43788.24 | J35: 59452173.28 | K35: 1357.720093 | L35: 16292.64111 | M35: 0.08628696034 | P35: -0.0075 | Q35: 0.06737649292 | R35: 16009.01306 | S35: 0.01771677337 | T35: -0.005905591122 | U35: 0 | V35: 0 | W35: -0.005905591122 | X35: 0.009499998836 | Y35: 0.008666666667 | Z35: 0.0181666655 | AA35: -0.005798306224 | AB35: 44166285.79 | AC35: -256089.6498 | AE35: 46539078.67 | AF35: 0.9944973202 | AH35: 0 | AJ35: 0 | AK35: 0 | AL35: 0.9944973202 | AN35: 0 | AO35: 0.9944973202 | AQ35: 2422092.26 | AR35: -993487.52 | AS35: 0 | AT35: 2422092.26 | AU35: -993487.52 | AV35: 2422092.26 | AW35: 1.046541588 | AY35: 0 | AZ35: 1.046541588 | BB35: -572192.6835 | BC35: -561797.8504 | BD35: 1.0345
A36: 210035 | B36: UM Charles Regional Medical Center | C36: 17691.5 | D36: 212298 | E36: 228573339.6 | F36: 1076.662708 | G36: 12919.9525 | H36: 17885.75 | I36: 214629 | J36: 241594241.8 | K36: 1125.636525 | L36: 13507.6383 | M36: 0.04548668479 | P36: -0.0025 | Q36: 0.07756024092 | R36: 13922.02712 | S36: -0.02976497732 | T36: 0.009921659105 | U36: 0 | V36: 0 | W36: 0.009921659105 | X36: 0.002599997119 | Y36: 0 | Z36: 0.002599997119 | AA36: 0.00994745539 | AB36: 51164458.18 | AC36: 508956.1653 | AE36: 53600882.76 | AF36: 1.009495294 | AH36: 128419 | AJ36: =81362-AH36 -> -47057 | AK36: 77828 | AL36: 1.010643447 | AN36: 0 | AO36: 1.010643447 | AQ36: 103.7816 | AR36: -101257.5 | AS36: 0.69704 | AT36: 31.44167354 | AU36: -30676.9722 | AV36: 31.44167354 | AW36: 1.010644034 | AY36: 0 | AZ36: 1.010644034 | BB36: 2552850.398 | BC36: 2559487.802 | BD36: 1.0584
A37: 210037 | B37: UM Shore Medical Center at Easton | C37: 23652.17 | D37: 283826.04 | E37: 292281072.6 | F37: 1029.789488 | G37: 12357.47386 | H37: 23302.75 | I37: 279633 | J37: 332676273.7 | K37: 1189.688891 | L37: 14276.26669 | M37: 0.1552738733 | P37: -0.005 | Q37: 0.07246232817 | R37: 13252.92519 | S37: 0.07721627411 | T37: -0.01 | U37: 0 | V37: 0 | W37: -0.01 | X37: 0.01080000117 | Y37: -0.003666666667 | Z37: 0.007133334503 | AA37: -0.01 | AB37: 127372849.7 | AC37: -1273728.497 | AE37: 126276919.3 | AF37: 0.99 | AH37: 0 | AJ37: 0 | AK37: 0 | AL37: 0.99 | AN37: 0 | AO37: 0.99 | AQ37: -3901944.84 | AR37: -1225647.98 | AS37: 0.73123 | AT37: -1048725.715 | AU37: -329417.4076 | AV37: -329417.4076 | AW37: 0.9873913094 | AY37: 0 | AZ37: 0.9873913094 | BB37: 1493971.172 | BC37: 1504628.169 | BD37: 0.9993
A38: 210038 | B38: UM Medical Center Midtown Campus | C38: 4105.17 | D38: 49262.04 | E38: 64061111.17 | F38: 1300.415313 | G38: 15604.98376 | H38: 3226.06 | I38: 38712.72 | J38: 54950173.63 | K38: 1419.434585 | L38: 17033.21501 | M38: 0.09152404641 | P38: -0.01 | Q38: 0.06230273517 | R38: 16577.21693 | S38: 0.02750751765 | T38: -0.00916917255 | U38: 0 | V38: 0 | W38: -0.00916917255 | X38: 0.01529999671 | Y38: -0.003333333333 | Z38: 0.01196666338 | AA38: -0.009059448149 | AB38: 47879193.99 | AC38: -433759.0753 | AE38: 49208428.36 | AF38: 0.9911852687 | AH38: 0 | AJ38: 0 | AK38: 0 | AL38: 0.9911852687 | AN38: 0 | AO38: 0.9911852687 | AQ38: -8010.1 | AR38: -146690.92 | AS38: 0.62189 | AT38: -3028.698911 | AU38: -55465.30376 | AV38: -3028.698911 | AW38: 0.9911237203 | AY38: 0 | AZ38: 0.9911237203 | BB38: -1410314.844 | BC38: -1393438.081 | BD38: 0.9628
A39: 210039 | B39: Calvert Memorial | C39: 13161.75 | D39: 157941 | E39: 163099277.7 | F39: 1032.659523 | G39: 12391.91428 | H39: 14042.83 | I39: 168513.96 | J39: 187244187.4 | K39: 1111.149411 | L39: 13333.79293 | M39: 0.07600751855 | P39: 0 | Q39: 0.08267023117 | R39: 13416.35669 | S39: -0.006153963069 | T39: 0.002051321023 | U39: 0 | V39: 0 | W39: 0.002051321023 | X39: 0.006500001837 | Y39: -0.004666666667 | Z39: 0.00183333517 | AA39: 0.002055081782 | AB39: 54092384.57 | AC39: 111164.2741 | AE39: 55899875.68 | AF39: 1.001988632 | AH39: 0 | AJ39: 0 | AK39: 0 | AL39: 1.001988632 | AN39: 0 | AO39: 1.001988632 | AQ39: 878122.89 | AR39: -256583.42 | AS39: 0 | AT39: 878122.89 | AU39: -256583.42 | AV39: 878122.89 | AW39: 1.017697484 | AY39: 0 | AZ39: 1.017697484 | BB39: -262054.0453 | BC39: -261573.6124 | BD39: 1.013
A40: 210040 | B40: Northwest Hospital | C40: 14659.13 | D40: 175909.56 | E40: 208497839.8 | F40: 1185.255877 | G40: 14223.07052 | H40: 13000.63 | I40: 156007.56 | J40: 205894389.8 | K40: 1319.771874 | L40: 15837.26249 | M40: 0.1134911033 | P40: -0.01 | Q40: 0.06230273517 | R40: 15109.20672 | S40: 0.04818623393 | T40: -0.01 | U40: 0 | V40: 0 | W40: -0.01 | X40: -0.002499999052 | Y40: 0.012 | Z40: 0.009500000948 | AA40: -0.01 | AB40: 94547334.16 | AC40: -945473.3416 | AE40: 98485707.47 | AF40: 0.9903998929 | AH40: 0 | AJ40: 0 | AK40: 0 | AL40: 0.9903998929 | AN40: 0 | AO40: 0.9903998929 | AQ40: -1182971.86 | AR40: -285970.75 | AS40: 0.73747 | AT40: -310565.6024 | AU40: -75075.901 | AV40: -75075.901 | AW40: 0.9896375904 | AY40: 0 | AZ40: 0.9896375904 | BB40: -513099.9204 | BC40: -508225.4707 | BD40: 0.9845
A41: 210043 | B41: UM Baltimore Washington Medical Center | C41: 32586.68 | D41: 391040.16 | E41: 413877308.9 | F41: 1058.401032 | G41: 12700.81238 | H41: 32423.96 | I41: 389087.52 | J41: 471653053.5 | K41: 1212.202986 | L41: 14546.43583 | M41: 0.1453153855 | P41: -0.0025 | Q41: 0.07756024092 | R41: 13685.89045 | S41: 0.06287828933 | T41: -0.01 | U41: 0 | V41: 0 | W41: -0.01 | X41: 0.00319999928 | Y41: 0 | Z41: 0.00319999928 | AA41: -0.01 | AB41: 140683573.3 | AC41: -1406835.733 | AE41: 145675886.4 | AF41: 0.9903427 | AH41: 171536 | AJ41: =174561-AH41 -> 3025 | AK41: 417271 | AL41: 0.9961129893 | AN41: 0 | AO41: 0.9961129893 | AQ41: -4655072.06 | AR41: -4369880.72 | AS41: 0.82006 | AT41: -837633.6665 | AU41: -786316.3368 | AV41: -786316.3368 | AW41: 0.9907152783 | AY41: 0 | AZ41: 0.9907152783 | BB41: 8619217.404 | BC41: 8646798.893 | BD41: 1.0501
A42: 210044 | B42: Greater Baltimore Medical Center | C42: 19386.58 | D42: 232638.96 | E42: 249898567.8 | F42: 1074.19053 | G42: 12890.28636 | H42: 18375.03 | I42: 220500.36 | J42: 263688816.8 | K42: 1195.865697 | L42: 14350.38837 | M42: 0.1132714951 | P42: -0.005 | Q42: 0.07246232817 | R42: 13824.34652 | S42: 0.03805184184 | T42: -0.01 | U42: 0 | V42: 0 | W42: -0.01 | X42: 0.006199998232 | Y42: -0.006 | Z42: 0.0001999982324 | AA42: -0.01 | AB42: 112433786 | AC42: -1124337.86 | AE42: 113701995.1 | AF42: 0.990111538 | AH42: 113746 | AJ42: =0-AH42 -> -113746 | AK42: 156186 | AL42: 0.9908580508 | AN42: 0 | AO42: 0.9908580508 | AQ42: -5930429.77 | AR42: -2485695.24 | AS42: 0.39384 | AT42: -3594789.309 | AU42: -1506729.027 | AV42: -1506729.027 | AW42: 0.9776064889 | AY42: 0 | AZ42: 0.9776064889 | BB42: -1255093.852 | BC42: -1254842.835 | BD42: 0.9666
A43: 210048 | B43: Howard General Hospital | C43: 30977.37 | D43: 371728.44 | E43: 346717941.6 | F43: 932.7183619 | G43: 11192.62034 | H43: 31427 | I43: 377124 | J43: 398333512.5 | K43: 1056.240156 | L43: 12674.88187 | M43: 0.1324320384 | P43: 0 | Q43: 0.08267023117 | R43: 12117.91685 | S43: 0.04596210901 | T43: -0.01 | U43: 0 | V43: 0 | W43: -0.01 | X43: -0.00939999856 | Y43: -0.004 | Z43: -0.01339999856 | AA43: -0.01 | AB43: 82002149.66 | AC43: -820021.4966 | AE43: 86339154.56 | AF43: 0.9905023219 | AH43: 0 | AJ43: 0 | AK43: 0 | AL43: 0.9905023219 | AN43: 0 | AO43: 0.9905023219 | AQ43: -1858401.98 | AR43: -768084.73 | AS43: 0.77058 | AT43: -426354.5823 | AU43: -176213.9988 | AV43: -176213.9988 | AW43: 0.9884613707 | AY43: 0 | AZ43: 0.9884613707 | BB43: 5766148.377 | BC43: 5688881.997 | BD43: 1.0544
A44: 210049 | B44: Upper Chesapeake Medical Center | C44: 32188.1 | D44: 386257.2 | E44: 415742843.2 | F44: 1076.336812 | G44: 12916.04174 | H44: 29446.4 | I44: 353356.8 | J44: 424069724.2 | K44: 1200.117627 | L44: 14401.41152 | M44: 0.115001934 | P44: -0.005 | Q44: 0.07246232817 | R44: 13851.9682 | S44: 0.03966536144 | T44: -0.01 | U44: 0 | V44: 0 | W44: -0.01 | X44: -0.003499999237 | Y44: 0 | Z44: -0.003499999237 | AA44: -0.01 | AB44: 110436185.9 | AC44: -1104361.859 | AE44: 113578763 | AF44: 0.990276687 | AH44: 0 | AJ44: 0 | AK44: 0 | AL44: 0.990276687 | AN44: 0 | AO44: 0.990276687 | AQ44: -4155196.07 | AR44: -2689031.33 | AS44: 0.83382 | AT44: -690510.4829 | AU44: -446863.2264 | AV44: -446863.2264 | AW44: 0.9863422964 | AY44: 0 | AZ44: 0.9863422964 | BB44: -2925138.89 | BC44: -2935376.874 | BD44: 0.9605
A45: 210051 | B45: Doctors' Community Hospital | C45: 22249.95 | D45: 266999.4 | E45: 272214937.6 | F45: 1019.533892 | G45: 12234.40671 | H45: 21380.27 | I45: 256563.24 | J45: 298346680.5 | K45: 1162.858251 | L45: 13954.29901 | M45: 0.1405783169 | P45: 0 | Q45: 0.08267023117 | R45: 13245.82794 | S45: 0.05348635625 | T45: -0.01 | U45: 0 | V45: 0 | W45: -0.01 | X45: 0.003800001898 | Y45: 0.008666666667 | Z45: 0.01246666856 | AA45: -0.01 | AB45: 65665110.35 | AC45: -656651.1035 | AE45: 72224269.02 | AF45: 0.9909081655 | AH45: 178949 | AJ45: =138650-AH45 -> -40299 | AK45: 0 | AL45: 0.9897922248 | AN45: 0 | AO45: 0.9897922248 | AQ45: 1838673.54 | AR45: -1437070.59 | AS45: 0.55938 | AT45: 810156.3352 | AU45: -633202.0434 | AV45: 810156.3352 | AW45: 1.001009456 | AY45: 0 | AZ45: 1.001009456 | BB45: 4741326.774 | BC45: 4800435.323 | BD45: 1.0675
A46: 210056 | B46: MedStar Good Samaritan | C46: 11415.9 | D46: 136990.8 | E46: 172357622.1 | F46: 1258.169323 | G46: 15098.03188 | H46: 9942.34 | I46: 119308.08 | J46: 172811406.2 | K46: 1448.446796 | L46: 17381.36155 | M46: 0.1512335976 | P46: -0.01 | Q46: 0.06230273517 | R46: 16038.68056 | S46: 0.08371517792 | T46: -0.01 | U46: 0 | V46: 0 | W46: -0.01 | X46: -0.004099999827 | Y46: -0.002666666667 | Z46: -0.006766666493 | AA46: -0.01 | AB46: 101295769.8 | AC46: -1012957.698 | AE46: 104840899.4 | AF46: 0.9903381438 | AH46: 0 | AJ46: =28417-AH46 -> 28417 | AK46: 84198 | AL46: 0.9924864466 | AN46: 0 | AO46: 0.9924864466 | AQ46: 1670192.5 | AR46: -1235669.57 | AS46: 0 | AT46: 1670192.5 | AU46: -1235669.57 | AV46: 1670192.5 | AW46: 1.008417181 | AY46: 0 | AZ46: 1.008417181 | BB46: -1490799.169 | BC46: -1500886.91 | BD46: 0.9941
A47: 210057 | B47: Shady Grove Adventist | C47: 29489.94 | D47: 353879.28 | E47: 323272651.9 | F47: 913.5111045 | G47: 10962.13325 | H47: 29867.13 | I47: 358405.56 | J47: 360380570 | K47: 1005.510545 | L47: 12066.12654 | M47: 0.1007097126 | P47: 0 | Q47: 0.08267023117 | R47: 11868.37534 | S47: 0.01666202773 | T47: -0.005554009242 | U47: 0 | V47: 0 | W47: -0.005554009242 | X47: 0.007799998808 | Y47: 0.0006666666667 | Z47: 0.008466665475 | AA47: -0.005506985304 | AB47: 111924233 | AC47: -616365.1062 | AE47: 115685667.3 | AF47: 0.9946720703 | AH47: 0 | AJ47: 0 | AK47: 0 | AL47: 0.9946720703 | AN47: 0 | AO47: 0.9946720703 | AQ47: -171980.88 | AR47: -1045531.94 | AS47: 0 | AT47: -171980.88 | AU47: -1045531.94 | AV47: -171980.88 | AW47: 0.9931854481 | AY47: 0 | AZ47: 0.9931854481 | BB47: -2705289.295 | BC47: -2682384.516 | BD47: 0.97
A48: 210058 | B48: UM Rehabilitation & Orthopaedic Institute | AC48: 155955 | AE48: 31728970.89 | AF48: =MAX(MIN(1+AC48/AE48,1.01),0.99) -> 1.004915224 | AH48: 0 | AJ48: 0 | AK48: 0 | AL48: 1.004915224 | AN48: 0 | AO48: 1.004915224 | AQ48: 0 | AR48: 0 | AS48: 0 | AT48: =AQ48*(1-AS48) -> 0 | AU48: =AR48*(1-AS48) -> 0 | AV48: =MAX(AT48,AU48) -> 0 | AW48: 1.004915224 | AY48: 0 | AZ48: 1.004915224 | BB48: -722905.2253 | BC48: -722905.2253 | BD48: 0.9821
A49: 210060 | B49: Adventist Fort Washington | C49: 6269.25 | D49: =C49*12 -> 75231 | E49: 74271491.6 | F49: =E49/D49 -> 987.2458375 | G49: =E49/C49 -> 11846.95005 | H49: 5697.02 | I49: 68364.24 | J49: 79038029.91 | K49: =J49/I49 -> 1156.131187 | L49: =J49/H49 -> 13873.57424 | M49: =L49/G49-1 -> 0.1710671675 | P49: 0 | Q49: 0.08267023117 | R49: =G49*(1+Q49) -> 12826.34015 | S49: =(L49-R49)/R49 -> 0.08164714779 | T49: =MIN($T$6,MAX(-T$6,(R49-L49)/R49*($T$6/$S$6))) -> -0.01 | U49: 0 | V49: 0 | W49: -0.01 | X49: -0.004699999754 | Y49: 0 | Z49: =SUM(X49:Y49) -> -0.004699999754 | AA49: -0.01 | AB49: 19370578.44 | AC49: -193705.7844 | AE49: 20994374.84 | AF49: 0.9907734436 | AH49: 0 | AJ49: 0 | AK49: 0 | AL49: 0.9907734436 | AN49: 0 | AO49: 0.9907734436 | AQ49: 0 | AR49: 0 | AS49: 0 | AT49: 0 | AU49: 0 | AV49: 0 | AW49: 0.9907734436 | AY49: 0 | AZ49: 0.9907734436 | BB49: -370740.3938 | BC49: -372482.8736 | BD49: 0.973
A50: 210061 | B50: Atlantic General | C50: 5691.05 | D50: 68292.6 | E50: 68767205.73 | F50: 1006.949592 | G50: 12083.39511 | H50: 5648.66 | I50: 67783.92 | J50: 73781810.44 | K50: 1088.485447 | L50: 13061.82536 | M50: 0.08097312415 | P50: -0.01 | Q50: 0.06230273517 | R50: 12836.22367 | S50: 0.01757539387 | T50: -0.005858464624 | U50: 0 | V50: 0 | W50: -0.005858464624 | X50: 0.008500000757 | Y50: -0.002666666667 | Z50: 0.005833334091 | AA50: -0.005824290243 | AB50: 31937452.96 | AC50: -186012.9956 | AE50: 32879270.23 | AF50: 0.9943425449 | AH50: 118645 | AJ50: =112123-AH50 -> -6522 | AK50: 100482 | AL50: 1.000058 | AN50: 0 | AO50: 1.000058 | AQ50: 2858398.22 | AR50: -925343.31 | AS50: 0.72357 | AT50: 790147.02 | AU50: -255792.6512 | AV50: 790147.02 | AW50: 1.024089769 | AY50: 0 | AZ50: 1.024089769 | BB50: -160436.0974 | BC50: -159500.22 | BD50: 1.0192
A51: 210062 | B51: MedStar Southern Maryland | C51: 21889.85 | D51: 262678.2 | E51: 274944841.7 | F51: 1046.698362 | G51: 12560.38034 | H51: 21050.03 | I51: 252600.36 | J51: 298397125 | K51: 1181.301266 | L51: 14175.61519 | M51: 0.1285976064 | P51: -0.0025 | Q51: 0.07756024092 | R51: 13534.56647 | S51: 0.04736381647 | T51: -0.01 | U51: 0 | V51: 0 | W51: -0.01 | X51: 0.0008000002335 | Y51: 0 | Z51: 0.0008000002335 | AA51: -0.01 | AB51: 72093441.45 | AC51: -720934.4145 | AE51: 78952807.11 | AF51: 0.9908687931 | AH51: 153485 | AJ51: =189072-AH51 -> 35587 | AK51: 289607 | AL51: 0.9991064736 | AN51: 0 | AO51: 0.9991064736 | AQ51: -2207629.23 | AR51: -1020376.88 | AS51: 0 | AT51: -2207629.23 | AU51: -1020376.88 | AV51: -1020376.88 | AW51: 0.9861825902 | AY51: 0 | AZ51: 0.9861825902 | BB51: -1024163.618 | BC51: -1023344.286 | BD51: 0.9732
A52: 210063 | B52: UM Saint Joseph Medical Center | C52: 25322.57 | D52: 303870.84 | E52: 330985567.8 | F52: 1089.231095 | G52: 13070.77314 | H52: 23602.66 | I52: 283231.92 | J52: 345303682.8 | K52: 1219.155252 | L52: 14629.86302 | M52: 0.1192806169 | P52: -0.005 | Q52: 0.07246232817 | R52: 14017.91179 | S52: 0.04365494944 | T52: -0.01 | U52: 0 | V52: 0 | W52: -0.01 | X52: -0.004300001725 | Y52: -0.0006666666667 | Z52: -0.004966668391 | AA52: -0.01 | AB52: 139340405.5 | AC52: -1393404.055 | AE52: 141188972.7 | AF52: 0.9901309286 | AH52: 0 | AJ52: 0 | AK52: 178946 | AL52: 0.9926657724 | AN52: 0 | AO52: 0.9926657724 | AQ52: -6174243.56 | AR52: -4114313.66 | AS52: 0.83042 | AT52: -1047028.223 | AU52: -697705.3105 | AV52: -697705.3105 | AW52: 0.9877241308 | AY52: 0 | AZ52: 0.9877241308 | BB52: 1606662.794 | BC52: 1598683.033 | BD52: 0.999
A53: 210064 | B53: Levindale | AC53: 0 | AE53: 41525737.32 | AF53: 1 | AH53: 0 | AJ53: 0 | AK53: 0 | AL53: 1 | AN53: 0 | AO53: 1 | AQ53: 0 | AR53: 0 | AS53: 0 | AT53: =AQ53*(1-AS53) -> 0 | AU53: =AR53*(1-AS53) -> 0 | AV53: =MAX(AT53,AU53) -> 0 | AW53: 1 | AY53: 0 | AZ53: 1 | BB53: -891447.7695 | BC53: -891447.7695 | BD53: 0.9785
A54: 210065 | B54: Holy Cross Germantown Hospital | C54: 4341.55 | D54: 52098.6 | E54: 48103540.87 | F54: 923.3173419 | G54: 11079.8081 | H54: 4470.12 | I54: 53641.44 | J54: 54066160.35 | K54: 1007.917766 | L54: 12095.01319 | M54: 0.09162659452 | P54: 0 | Q54: 0.08267023117 | R54: 11995.7784 | S54: 0.008272475864 | T54: -0.002757491955 | U54: 0 | V54: 0 | W54: -0.002757491955 | X54: 0.002299999104 | Y54: 0.004666666667 | Z54: 0.006966665771 | AA54: -0.00273828143 | AB54: 27271451.58 | AC54: -74676.90943 | AE54: 29114881.72 | AF54: 0.9974350949 | AH54: 0 | AJ54: 0 | AK54: 0 | AL54: 0.9974350949 | AN54: 0 | AO54: 0.9974350949 | AQ54: 255279.76 | AR54: -153612.91 | AS54: 0.0061 | AT54: 253722.5535 | AU54: -152675.8712 | AV54: 253722.5535 | AW54: 1.006149626 | AY54: 0 | AZ54: 1.006149626 | BB54: 44344.4783 | BC54: 44653.41146 | BD54: 1.0077
A56: Footnotes: | Y56: Max: | Z56: =MAX(Z10:Z54) -> 0.03733333333
A57: *Due to rounding and the need to protect PHI by surpressing small cell sizes, beneficiary counts may not add to the facility total
A58: ** Includes Substance Abuse claims paid to hospital but not reported in the CCLF
A59: *** ECIP payments will be completed in two adjustments. The prliminary Jan to Jun 2022 adjustment shown in column AH was made in the Jul 1, 2023 MPA adjustment. In the Jan 1, 2024 adjustment this result is adjsuted to final values and the preliminary Jul to Dec 2022 adjustment is made.
A60: ^^ MPA Savings Component set to zero as adjustment is complete as of 12/31/23.
